bitfinex-derivatives/quotes_BTCF0:USTF0_20241120
["timestamp","ask_amount","ask_price","bid_price","bid_amount"]
[1732087108021,0.00041637,92640.0,92639.0,0.40894666]
[1732087112112,0.00041637,92640.0,92639.0,0.78687396]
[1732087112307,0.005,92644.0,92639.0,1.36031899]
[1732087112509,0.053909,92660.0,92659.0,0.053909]
[1732087112820,0.0898,92665.0,92664.0,0.053907]
[1732087113119,0.053905,92667.0,92664.0,0.06991143]
[1732087113322,0.053905,92667.0,92666.0,0.12381743]
[1732087113914,0.0898,92668.0,92667.0,0.053905]
[1732087114306,0.04914466,92670.0,92666.0,0.06991143]
[1732087114512,0.0898,92669.0,92668.0,0.25737209]
[1732087114710,0.0898,92669.0,92666.0,0.06991143]
[1732087115309,0.0898,92669.0,92668.0,0.25726633]
[1732087115817,0.0898,92669.0,92668.0,0.31117033]
[1732087116315,0.00161971,92670.0,92668.0,0.053904]
[1732087117311,0.00161971,92670.0,92669.0,0.053904]
[1732087119119,0.00161971,92670.0,92669.0,0.24670825]
[1732087120011,0.00161971,92670.0,92669.0,0.053904]
[1732087120519,0.00161971,92670.0,92667.0,0.25726633]
[1732087121028,0.00161971,92670.0,92669.0,0.053904]
[1732087122117,0.054844,92687.0,92683.0,0.053896]
[1732087122315,0.054844,92687.0,92686.0,0.06991143]
[1732087122620,0.19351799,92687.0,92686.0,0.12380543]
[1732087123124,0.09071,92687.0,92686.0,0.12380543]
[1732087125113,0.08976,92687.0,92686.0,0.12380543]
[1732087126017,0.1595612,92688.0,92686.0,0.12380543]
[1732087126220,0.11133294,92688.0,92686.0,0.12380543]
[1732087127124,0.16522594,92688.0,92686.0,0.06991143]
[1732087127324,0.16522594,92688.0,92682.0,0.06991143]
[1732087127624,0.053897,92681.0,92680.0,0.19273111]
[1732087127931,0.12380443,92687.0,92680.0,0.053897]
[1732087128119,0.08976,92686.0,92684.0,0.06991143]
[1732087129215,0.08976,92686.0,92685.0,0.053895]
[1732087129616,0.04789323,92688.0,92684.0,0.06991143]
[1732087129816,0.053893,92689.0,92684.0,0.06991143]
[1732087130014,0.143653,92688.0,92682.0,0.063896]
[1732087130211,0.143653,92688.0,92684.0,0.06991143]
[1732087130426,0.143653,92688.0,92685.0,0.053894]
[1732087132028,0.08976,92687.0,92685.0,0.053894]
[1732087132413,0.08976,92687.0,92682.0,0.01]
[1732087132722,0.08976,92687.0,92683.0,0.06991143]
[1732087132723,0.053895,92684.0,92683.0,0.06991143]
[1732087133318,0.053895,92684.0,92683.0,0.12380743]
[1732087133319,0.08976,92684.0,92683.0,0.12380743]
[1732087135033,0.08976,92684.0,92683.0,0.053896]
[1732087136028,0.3608,92687.0,92683.0,0.053896]
[1732087136029,0.08976,92685.0,92683.0,0.053896]
[1732087136627,0.08976,92685.0,92683.0,0.24662711]
[1732087137131,0.08976,92685.0,92684.0,0.19273111]
[1732087137331,0.08976,92685.0,92683.0,0.19273111]
[1732087137625,0.053895,92684.0,92683.0,0.19273111]
[1732087138126,0.053895,92684.0,92679.0,0.31079747]
[1732087138332,0.053895,92684.0,92680.0,0.053897]
[1732087138627,0.053895,92684.0,92682.0,0.053896]
[1732087139132,0.08976,92685.0,92681.0,0.25689947]
[1732087139333,0.08976,92685.0,92684.0,0.053895]
[1732087139627,0.04767062,92687.0,92685.0,0.053894]
[1732087139932,0.053893,92688.0,92685.0,0.053894]
[1732087140123,0.08964,92687.0,92685.0,0.31079347]
[1732087140323,0.08964,92687.0,92685.0,0.053894]
[1732087140526,0.08964,92687.0,92685.0,0.31079347]
[1732087140729,0.08964,92687.0,92686.0,0.25689947]
[1732087140919,0.08964,92687.0,92686.0,0.053894]
[1732087141324,0.08964,92687.0,92686.0,0.31118754]
[1732087142236,0.08964,92687.0,92686.0,0.37575578]
[1732087142424,0.053891,92692.0,92686.0,0.053894]
[1732087142617,0.0896,92687.0,92686.0,0.053894]
[1732087143925,0.06894601,92693.0,92686.0,0.053894]
[1732087144232,0.22553964,92745.0,92682.0,0.44071143]
[1732087144233,0.053883,92706.0,92692.0,0.05389]
[1732087144431,0.14904411,92700.0,92699.0,0.053886]
[1732087144631,0.23864411,92700.0,92699.0,0.053886]
[1732087146023,0.14904411,92700.0,92699.0,0.053886]
[1732087146219,0.14904411,92700.0,92699.0,0.75083525]
[1732087146424,0.14904411,92700.0,92699.0,0.75063424]
[1732087146824,0.14904411,92700.0,92699.0,0.42898314]
[1732087147233,0.14904411,92700.0,92699.0,0.053886]
[1732087147434,0.14904411,92700.0,92699.0,0.37541196]
[1732087147829,0.14904411,92700.0,92699.0,0.75084365]
[1732087148034,0.14904411,92700.0,92699.0,0.42931769]
[1732087148228,0.14904411,92700.0,92699.0,0.053886]
[1732087148536,0.14904411,92700.0,92699.0,0.42924215]
[1732087149445,0.005,92709.0,92708.0,0.053881]
[1732087149632,0.0896,92711.0,92710.0,0.05388]
[1732087150437,0.02319136,92718.0,92717.0,0.053876]
[1732087150438,0.00161842,92718.0,92717.0,0.053876]
[1732087150631,0.04927501,92724.0,92719.0,0.053875]
[1732087150833,0.0896,92729.0,92719.0,0.053875]
[1732087151638,0.0896,92730.0,92719.0,0.053875]
[1732087151837,0.005,92732.0,92719.0,0.118675]
[1732087152227,0.005,92732.0,92719.0,0.18858643]
[1732087152426,0.005,92732.0,92731.0,0.053868]
[1732087152637,0.3608,92738.0,92737.0,0.053864]
[1732087152638,0.36136001,92738.0,92737.0,0.053864]
[1732087152838,0.04741658,92738.0,92731.0,0.19235545]
[1732087153050,0.3608,92743.0,92729.0,0.3708]
[1732087153051,0.0896,92741.0,92738.0,0.053864]
[1732087153239,0.3608,92743.0,92736.0,0.053865]
[1732087153240,0.40997847,92743.0,92736.0,0.053865]
[1732087153438,0.06991143,92737.0,92731.0,0.053868]
[1732087153630,0.06991143,92737.0,92736.0,0.053865]
[1732087155043,0.11115992,92741.0,92729.0,0.56315545]
[1732087155351,0.11115992,92741.0,92732.0,0.053867]
[1732087155352,0.06991143,92733.0,92732.0,0.053867]
[1732087157444,0.02155992,92741.0,92740.0,0.053863]
[1732087158737,0.0896,92742.0,92740.0,0.053863]
[1732087158943,0.06991143,92741.0,92740.0,0.053863]
[1732087159334,0.06991143,92741.0,92732.0,0.01]
[1732087159335,0.13982286,92741.0,92739.0,0.053863]
[1732087159535,0.06991143,92740.0,92739.0,0.053863]
[1732087159749,0.0896,92740.0,92739.0,0.053863]
[1732087159946,0.05039754,92747.0,92739.0,0.053863]
[1732087159947,0.06991143,92742.0,92739.0,0.053863]
[1732087160150,0.06991143,92742.0,92741.0,0.053862]
[1732087162045,0.06991143,92742.0,92737.0,0.3608]
[1732087162046,0.06991143,92743.0,92742.0,0.053861]
[1732087162650,0.00146,92747.0,92742.0,0.053861]
[1732087162842,0.00146,92747.0,92746.0,0.053859]
[1732087163348,0.07137143,92747.0,92746.0,0.053859]
[1732087165142,0.00146,92747.0,92746.0,0.053859]
[1732087165339,0.00161781,92764.0,92761.0,0.05385]
[1732087165547,0.06991143,92762.0,92761.0,0.05385]
[1732087166152,0.00161781,92764.0,92758.0,0.3608]
[1732087166358,0.0094,92768.0,92759.0,0.13341143]
[1732087166656,0.0094,92768.0,92767.0,0.053847]
[1732087168451,0.005,92783.0,92782.0,0.053838]
[1732087168640,0.08952,92792.0,92791.0,0.053833]
[1732087169041,0.08952,92793.0,92792.0,0.053832]
[1732087169238,0.02155568,92798.0,92787.0,0.06991143]
[1732087169451,0.02155568,92798.0,92793.0,0.053832]
[1732087169953,0.02155568,92798.0,92787.0,0.06991143]
[1732087170155,0.02155568,92798.0,92792.0,0.053832]
[1732087170345,0.08948,92797.0,92788.0,0.053834]
[1732087170541,0.08948,92797.0,92791.0,0.053833]
[1732087170741,0.14835854,92800.0,92787.0,0.053835]
[1732087170941,0.08948,92799.0,92784.0,0.01]
[1732087171742,0.14835854,92800.0,92791.0,0.053833]
[1732087171945,0.08948,92799.0,92791.0,0.053833]
[1732087172144,0.08948,92799.0,92792.0,0.053832]
[1732087172745,0.00072556,92795.0,92787.0,0.3608]
[1732087172947,0.00072556,92795.0,92793.0,0.053831]
[1732087173144,0.00072556,92795.0,92793.0,0.1578708]
[1732087174244,0.00072556,92795.0,92793.0,0.1040398]
[1732087174556,0.00072556,92795.0,92793.0,0.1578708]
[1732087175641,0.00072556,92795.0,92793.0,0.053831]
[1732087175848,0.00072556,92795.0,92794.0,0.0325]
[1732087176042,0.1,92800.0,92794.0,0.35578]
[1732087176348,0.23493964,92870.0,92794.0,0.35578]
[1732087176349,0.053817,92819.0,92807.0,0.053824]
[1732087176547,0.08948,92822.0,92817.0,0.053818]
[1732087176750,0.08948,92822.0,92817.0,0.1578578]
[1732087176951,0.053815,92823.0,92818.0,0.053817]
[1732087177145,0.39497715,92826.0,92822.0,0.053815]
[1732087177146,0.00217715,92826.0,92822.0,0.053815]
[1732087177350,0.00217715,92826.0,92825.0,0.1040398]
[1732087177351,0.00161714,92826.0,92825.0,0.1040398]
[1732087177859,0.00161714,92826.0,92825.0,0.4648398]
[1732087178073,0.00161714,92826.0,92825.0,0.1040398]
[1732087178359,0.00161714,92826.0,92825.0,0.3608]
[1732087181150,0.00161714,92826.0,92817.0,0.3708]
[1732087181151,0.053815,92822.0,92817.0,0.3708]
[1732087181352,0.00161714,92826.0,92821.0,0.053815]
[1732087181663,0.00161714,92826.0,92825.0,0.414613]
[1732087185056,0.005,92841.0,92825.0,0.3608]
[1732087185057,0.053809,92834.0,92825.0,0.3608]
[1732087185256,0.053809,92834.0,92828.0,0.1578508]
[1732087185460,0.053809,92834.0,92833.0,0.3608]
[1732087186359,0.053806,92839.0,92834.0,0.053808]
[1732087186562,0.053805,92839.0,92834.0,0.053808]
[1732087187063,0.053807,92835.0,92833.0,0.3608]
[1732087189074,0.414608,92835.0,92826.0,0.01]
[1732087189252,0.08944,92841.0,92831.0,0.053809]
[1732087189451,0.08944,92841.0,92827.0,0.1040398]
[1732087189452,0.053805,92839.0,92827.0,0.1040398]
[1732087189963,0.08944,92841.0,92827.0,0.1040398]
[1732087190269,0.053805,92840.0,92828.0,0.053812]
[1732087190455,0.08944,92841.0,92840.0,0.053805]
[1732087191165,0.08944,92841.0,92835.0,0.01]
[1732087191365,0.053802,92845.0,92836.0,0.053807]
[1732087191564,0.053804,92841.0,92834.0,0.3608]
[1732087191772,0.053806,92838.0,92830.0,0.01]
[1732087192567,0.053807,92836.0,92830.0,0.01]
[1732087192755,0.053811,92829.0,92826.0,0.3608]
[1732087194263,0.0308,92835.0,92827.0,0.053812]
[1732087194457,0.053809,92833.0,92827.0,0.053812]
[1732087194869,0.0308,92835.0,92826.0,0.3608]
[1732087195078,0.05381,92830.0,92826.0,0.3608]
[1732087195370,0.053815,92822.0,92821.0,0.00161591]
[1732087195563,0.414615,92822.0,92821.0,0.00161591]
[1732087196268,0.08944,92829.0,92821.0,0.00161591]
[1732087196474,0.053815,92823.0,92821.0,0.00161591]
[1732087197262,0.08944,92822.0,92821.0,0.00161591]
[1732087198570,0.41461,92831.0,92821.0,0.00161591]
[1732087198764,0.09368,92830.0,92825.0,0.053813]
[1732087199171,0.053813,92825.0,92824.0,0.19235545]
[1732087199365,0.09368,92830.0,92823.0,0.19235545]
[1732087199572,0.09368,92830.0,92821.0,0.00161591]
[1732087199573,0.147491,92830.0,92822.0,0.19235545]
[1732087199966,0.053812,92827.0,92822.0,0.19235545]
[1732087200662,0.053812,92827.0,92821.0,0.00161591]
[1732087200865,0.053814,92823.0,92821.0,0.00161591]
[1732087201278,0.0301,92822.0,92821.0,0.00161591]
[1732087204376,0.083915,92822.0,92821.0,0.00161591]
[1732087204975,0.767915,92822.0,92821.0,0.00161591]
[1732087205173,0.767915,92822.0,92815.0,0.01]
[1732087205174,0.8181398,92822.0,92815.0,0.20235545]
[1732087205377,0.0215367,92827.0,92822.0,0.053815]
[1732087205583,0.40827392,92831.0,92829.0,0.053811]
[1732087205877,0.40883393,92831.0,92824.0,0.19235545]
[1732087206065,0.40827392,92831.0,92830.0,0.05381]
[1732087206271,0.50199392,92831.0,92830.0,0.05381]
[1732087206678,0.45452,92831.0,92830.0,0.05381]
[1732087206877,0.45452,92831.0,92822.0,0.01]
[1732087206878,0.45452,92831.0,92829.0,0.19235545]
[1732087207176,0.45452,92831.0,92822.0,0.01]
[1732087207177,0.09372,92831.0,92830.0,0.05381]
[1732087207376,0.09372,92831.0,92826.0,0.25647393]
[1732087207377,0.0333,92834.0,92833.0,0.053809]
[1732087207577,0.09372,92840.0,92830.0,0.25647393]
[1732087207787,0.09372,92840.0,92835.0,0.053807]
[1732087207976,0.09372,92839.0,92835.0,0.2459876]
[1732087208280,0.09372,92839.0,92837.0,0.19214396]
[1732087208670,0.09372,92838.0,92836.0,0.19214396]
[1732087208871,0.09372,92838.0,92835.0,0.24595096]
[1732087209387,0.09372,92838.0,92836.0,0.19214396]
[1732087209979,0.09372,92838.0,92837.0,0.19214396]
[1732087210282,0.09372,92838.0,92835.0,0.053807]
[1732087210682,0.09372,92838.0,92834.0,0.25647393]
[1732087210881,0.09372,92838.0,92837.0,0.053806]
[1732087211483,0.09372,92838.0,92837.0,0.31027993]
[1732087211681,0.09372,92838.0,92837.0,0.053806]
[1732087211871,0.09372,92838.0,92837.0,0.31027993]
[1732087212284,0.053802,92844.0,92837.0,0.31027993]
[1732087212285,0.053802,92844.0,92838.0,0.053805]
[1732087212582,0.09368,92843.0,92842.0,0.19216679]
[1732087212775,0.11521372,92843.0,92842.0,0.19216679]
[1732087212976,0.02153372,92843.0,92841.0,0.19216679]
[1732087213177,0.40866577,92845.0,92842.0,0.19216679]
[1732087213377,0.09368,92844.0,92843.0,0.24596979]
[1732087213673,0.09368,92844.0,92843.0,0.053803]
[1732087214181,0.40874576,92845.0,92843.0,0.053803]
[1732087214182,0.00064,92845.0,92843.0,0.053803]
[1732087214492,0.00161599,92850.0,92848.0,0.0538]
[1732087214797,0.00161599,92850.0,92849.0,0.1040398]
[1732087215095,0.3658,92863.0,92857.0,0.053795]
[1732087215392,0.1040398,92858.0,92856.0,0.25599723]
[1732087215686,0.147475,92857.0,92856.0,0.25599723]
[1732087216387,0.09368,92857.0,92849.0,0.005]
[1732087216577,0.09368,92856.0,92849.0,0.005]
[1732087216985,0.09368,92856.0,92851.0,0.053798]
[1732087218185,0.3752,92870.0,92855.0,0.3608]
[1732087218488,0.054758,92869.0,92860.0,0.053793]
[1732087218691,0.053788,92868.0,92860.0,0.053793]
[1732087218892,0.00097,92869.0,92862.0,0.053792]
[1732087219292,0.09465,92869.0,92855.0,0.3658]
[1732087219587,0.053791,92864.0,92857.0,0.053794]
[1732087220688,0.053793,92861.0,92855.0,0.005]
[1732087221286,0.053794,92859.0,92855.0,0.005]
[1732087221492,0.053794,92859.0,92852.0,0.053797]
[1732087221688,0.053794,92859.0,92850.0,0.005]
[1732087221689,0.053794,92859.0,92855.0,0.053796]
[1732087221890,0.04734521,92869.0,92855.0,0.053796]
[1732087221891,0.14747,92865.0,92855.0,0.053796]
[1732087222191,0.14747,92865.0,92855.0,0.058796]
[1732087222192,0.053791,92864.0,92855.0,0.058796]
[1732087222393,0.053793,92860.0,92855.0,0.058796]
[1732087222584,0.053794,92858.0,92855.0,0.005]
[1732087222785,0.053795,92857.0,92853.0,0.19177479]
[1732087223589,0.053796,92855.0,92853.0,0.19177479]
[1732087223989,0.3608,92854.0,92853.0,0.19177479]
[1732087225084,0.45448,92854.0,92853.0,0.19177479]
[1732087225976,0.3608,92854.0,92853.0,0.19177479]
[1732087226176,0.09368,92868.0,92849.0,0.26069972]
[1732087226381,0.005,92865.0,92849.0,0.25569972]
[1732087226584,0.3608,92854.0,92851.0,0.005]
[1732087226800,0.053796,92855.0,92849.0,0.25569972]
[1732087227386,0.09368,92858.0,92851.0,0.053798]
[1732087227598,0.09368,92858.0,92849.0,0.25569972]
[1732087227785,0.09368,92858.0,92855.0,0.053796]
[1732087228183,0.053796,92856.0,92853.0,0.1917091]
[1732087228482,0.053796,92856.0,92852.0,0.1917091]
[1732087228687,0.09368,92858.0,92852.0,0.053797]
[1732087228883,0.147474,92858.0,92852.0,0.053797]
[1732087229085,0.053794,92858.0,92852.0,0.053797]
[1732087229289,0.053795,92857.0,92852.0,0.053797]
[1732087229595,0.414596,92855.0,92851.0,0.1917091]
[1732087229793,0.414596,92855.0,92850.0,0.1917091]
[1732087230096,0.414596,92855.0,92849.0,0.1917091]
[1732087230097,0.3608,92855.0,92849.0,0.1917091]
[1732087230301,0.053799,92849.0,92848.0,0.1917091]
[1732087230992,0.053799,92849.0,92845.0,0.005]
[1732087230993,0.3608,92851.0,92845.0,0.005]
[1732087231184,0.3608,92851.0,92848.0,0.19173564]
[1732087232489,0.3608,92851.0,92849.0,0.19173564]
[1732087233280,0.053799,92850.0,92849.0,0.19173564]
[1732087233484,0.3608,92851.0,92844.0,0.31719972]
[1732087233485,0.0538,92849.0,92845.0,0.25569972]
[1732087233796,0.053799,92849.0,92848.0,0.19181463]
[1732087233987,0.00056001,92851.0,92848.0,0.19181463]
[1732087234188,0.094,92859.0,92848.0,0.19181463]
[1732087234395,0.053796,92855.0,92852.0,0.19181463]
[1732087234586,0.053796,92855.0,92850.0,0.24561363]
[1732087234784,0.053797,92854.0,92850.0,0.19181463]
[1732087235098,0.053797,92854.0,92852.0,0.19184528]
[1732087235603,0.053797,92854.0,92848.0,0.25569972]
[1732087235898,0.053797,92854.0,92850.0,0.053799]
[1732087236399,0.053797,92854.0,92852.0,0.1919482]
[1732087236604,0.053797,92853.0,92848.0,0.25569972]
[1732087236792,0.414595,92857.0,92851.0,0.053798]
[1732087237098,0.414595,92857.0,92853.0,0.19201733]
[1732087237294,0.053796,92856.0,92853.0,0.19201733]
[1732087237485,0.053796,92856.0,92855.0,0.19201733]
[1732087237692,0.053796,92856.0,92854.0,0.19201733]
[1732087237891,0.053796,92855.0,92854.0,0.19201733]
[1732087238884,0.414596,92855.0,92850.0,0.25569972]
[1732087239089,0.414596,92855.0,92854.0,0.19211685]
[1732087239090,0.3608,92855.0,92854.0,0.19211685]
[1732087239387,0.053796,92855.0,92851.0,0.30949772]
[1732087239592,0.3608,92854.0,92851.0,0.053798]
[1732087240305,0.3608,92854.0,92851.0,0.25569972]
[1732087240306,0.414596,92854.0,92851.0,0.25569972]
[1732087240488,0.053797,92853.0,92852.0,0.25569972]
[1732087240688,0.053797,92853.0,92847.0,0.0588]
[1732087241098,0.3608,92854.0,92847.0,0.005]
[1732087241286,0.3608,92854.0,92852.0,0.25628457]
[1732087241287,0.414597,92854.0,92852.0,0.25628457]
[1732087241490,0.414597,92854.0,92848.0,0.0538]
[1732087241688,0.053798,92851.0,92847.0,0.005]
[1732087241889,0.053798,92851.0,92845.0,0.31962465]
[1732087242288,0.053798,92851.0,92845.0,0.37342565]
[1732087242488,0.053798,92851.0,92846.0,0.69162245]
[1732087242685,0.053798,92851.0,92846.0,0.31962465]
[1732087242891,0.0538,92849.0,92846.0,0.31962465]
[1732087243499,0.0538,92849.0,92847.0,0.69113602]
[1732087243698,0.0538,92849.0,92847.0,0.31962465]
[1732087244804,0.3608,92854.0,92851.0,0.053798]
[1732087244805,0.04719374,92853.0,92851.0,0.053798]
[1732087244994,0.094,92852.0,92850.0,0.37342265]
[1732087245193,0.094,92852.0,92851.0,0.053798]
[1732087245399,0.094,92852.0,92851.0,0.37342265]
[1732087245600,0.094,92852.0,92851.0,0.74495549]
[1732087245991,0.094,92852.0,92851.0,0.37153284]
[1732087246197,0.094,92852.0,92849.0,0.32059596]
[1732087246198,0.053798,92851.0,92849.0,0.32059596]
[1732087246794,0.053798,92851.0,92850.0,0.37150216]
[1732087247605,0.053798,92851.0,92850.0,0.69214544]
[1732087247893,0.053798,92851.0,92850.0,0.32064328]
[1732087248510,0.414597,92854.0,92850.0,0.37444228]
[1732087248725,0.414597,92854.0,92850.0,0.32064328]
[1732087249009,0.094,92856.0,92851.0,0.053798]
[1732087249317,0.094,92856.0,92852.0,0.053798]
[1732087249695,0.4548,92856.0,92852.0,0.053798]
[1732087249895,0.053796,92855.0,92849.0,0.32064328]
[1732087250212,0.09456001,92856.0,92854.0,0.053796]
[1732087250507,0.094,92856.0,92854.0,0.053796]
[1732087250708,0.094,92856.0,92854.0,0.32064328]
[1732087250896,0.147795,92856.0,92854.0,0.32064328]
[1732087251097,0.094,92856.0,92853.0,0.32064328]
[1732087251288,0.094,92856.0,92852.0,0.32064328]
[1732087251289,0.414596,92855.0,92852.0,0.32064328]
[1732087251493,0.414596,92855.0,92853.0,0.32064328]
[1732087251698,0.414596,92855.0,92852.0,0.32064328]
[1732087251894,0.414596,92855.0,92851.0,0.32064328]
[1732087251895,0.053797,92853.0,92851.0,0.32064328]
[1732087252294,0.3608,92855.0,92851.0,0.32064328]
[1732087252295,0.053798,92852.0,92851.0,0.32064328]
[1732087252494,0.053798,92852.0,92847.0,0.005]
[1732087252495,0.053798,92851.0,92850.0,0.32064328]
[1732087253507,0.053798,92851.0,92850.0,0.69383592]
[1732087253707,0.3608,92855.0,92849.0,0.32064328]
[1732087253910,0.094,92856.0,92849.0,0.32064328]
[1732087253911,0.053799,92850.0,92849.0,0.32064328]
[1732087254106,0.053799,92850.0,92849.0,0.37314648]
[1732087256197,0.553799,92850.0,92849.0,0.69384426]
[1732087256603,0.5,92850.0,92849.0,0.32072682]
[1732087256910,0.553799,92850.0,92849.0,0.32072682]
[1732087257407,0.053799,92849.0,92848.0,0.32074662]
[1732087257611,0.053799,92849.0,92848.0,0.37280435]
[1732087258500,0.414599,92849.0,92848.0,0.37280435]
[1732087258700,0.0538,92848.0,92847.0,0.32077386]
[1732087261317,0.0538,92848.0,92842.0,0.005]
[1732087261318,0.053801,92847.0,92846.0,0.32077386]
[1732087261609,0.053803,92843.0,92842.0,0.32577386]
[1732087261798,0.053803,92843.0,92842.0,0.25671653]
[1732087262002,0.053805,92839.0,92837.0,0.25671653]
[1732087262201,0.376923,92843.0,92835.0,0.005]
[1732087262202,0.053806,92837.0,92835.0,0.26171653]
[1732087262396,0.053806,92837.0,92832.0,7.579e-05]
[1732087262397,0.053807,92835.0,92833.0,0.25671653]
[1732087262597,0.5644398,92838.0,92832.0,0.25679232]
[1732087262598,0.053809,92833.0,92832.0,0.25679232]
[1732087262798,0.053809,92833.0,92832.0,7.579e-05]
[1732087267109,0.10288355,92833.0,92832.0,7.579e-05]
[1732087268916,0.10288355,92833.0,92832.0,0.19222545]
[1732087269303,0.10288355,92833.0,92832.0,7.579e-05]
[1732087272007,0.20252355,92833.0,92832.0,7.579e-05]
[1732087273515,0.20252355,92833.0,92817.0,0.25833266]
[1732087273516,0.5022,92832.0,92807.0,0.18674964]
[1732087273719,0.1040398,92807.0,92782.0,0.38354958]
[1732087274018,0.1040398,92807.0,92769.0,0.00128]
[1732087274019,0.1040398,92783.0,92769.0,0.3608]
[1732087274217,0.1040398,92783.0,92777.0,0.053841]
[1732087274408,0.1040398,92783.0,92770.0,0.116245]
[1732087274610,7.579e-05,92782.0,92774.0,0.053842]
[1732087274825,7.579e-05,92782.0,92770.0,0.0624]
[1732087275011,7.579e-05,92782.0,92771.0,0.053844]
[1732087275322,0.10258332,92782.0,92771.0,0.053844]
[1732087275509,0.05391379,92782.0,92771.0,0.053844]
[1732087277021,7.579e-05,92782.0,92770.0,0.0624]
[1732087277219,0.1040398,92776.0,92770.0,0.0624]
[1732087279141,0.053843,92774.0,92770.0,0.0624]
[1732087280222,0.053843,92774.0,92770.0,0.0318]
[1732087280428,0.053846,92769.0,92760.0,0.0307]
[1732087280723,0.053846,92769.0,92747.0,1.50124]
[1732087280724,0.1040398,92765.0,92747.0,0.00124]
[1732087280912,0.053857,92750.0,92748.0,0.0303]
[1732087282715,0.053857,92750.0,92739.0,0.053863]
[1732087283221,0.4648398,92751.0,92739.0,0.053863]
[1732087283619,0.02404876,92761.0,92755.0,0.053854]
[1732087283819,7.579e-05,92764.0,92762.0,0.053849]
[1732087284020,7.579e-05,92764.0,92763.0,0.0303]
[1732087287224,7.579e-05,92764.0,92763.0,0.3537]
[1732087287410,0.0025,92775.0,92774.0,0.053843]
[1732087287615,0.056336,92787.0,92774.0,0.4648398]
[1732087287829,0.053836,92786.0,92774.0,0.4648398]
[1732087288017,0.053836,92786.0,92783.0,0.053838]
[1732087288423,0.09964,92793.0,92786.0,0.053836]
[1732087288625,0.053833,92791.0,92786.0,0.053836]
[1732087289129,0.053834,92789.0,92786.0,0.053836]
[1732087290523,0.09964,92793.0,92788.0,0.053835]
[1732087291030,0.12118991,92793.0,92788.0,0.053835]
[1732087291428,0.02154991,92793.0,92788.0,0.053835]
[1732087291938,0.053833,92792.0,92788.0,0.053835]
[1732087292641,0.02154991,92793.0,92788.0,0.053835]
[1732087293937,0.02154991,92793.0,92789.0,0.053834]
[1732087297125,0.02154991,92793.0,92781.0,0.005]
[1732087297126,0.3608,92790.0,92781.0,0.005]
[1732087297339,0.1578778,92783.0,92781.0,0.005]
[1732087297537,0.053842,92776.0,92775.0,0.005]
[1732087297726,0.1040398,92776.0,92768.0,0.005]
[1732087297927,0.053844,92772.0,92768.0,0.005]
[1732087298232,0.3608,92773.0,92763.0,0.0353]
[1732087298432,0.0996,92772.0,92763.0,0.0353]
[1732087298740,0.3608,92764.0,92763.0,0.005]
[1732087298934,0.053847,92767.0,92758.0,0.053852]
[1732087299628,0.053848,92766.0,92758.0,0.053852]
[1732087300537,0.053848,92765.0,92758.0,0.053852]
[1732087300723,0.053849,92763.0,92756.0,0.005]
[1732087301424,0.3608,92768.0,92756.0,0.005]
[1732087301638,0.005,92770.0,92763.0,0.1040398]
[1732087301825,0.005,92770.0,92769.0,0.053846]
[1732087302135,0.005,92770.0,92764.0,0.0956]
[1732087302136,0.005,92776.0,92775.0,0.053842]
[1732087302445,0.005,92782.0,92776.0,0.053842]
[1732087302625,0.09964,92783.0,92775.0,0.3608]
[1732087302828,0.09964,92785.0,92784.0,0.053837]
[1732087303035,0.3608,92786.0,92772.0,0.3608]
[1732087303334,0.3608,92786.0,92780.0,0.053839]
[1732087304657,0.3608,92786.0,92764.0,0.19524]
[1732087304832,0.053839,92781.0,92773.0,0.053843]
[1732087305829,0.05384,92780.0,92773.0,0.053843]
[1732087306328,0.15348,92780.0,92773.0,0.053843]
[1732087307430,0.15348,92780.0,92774.0,0.053843]
[1732087308346,0.05384,92779.0,92774.0,0.053843]
[1732087310532,0.09964,92780.0,92774.0,0.053843]
[1732087310533,0.053841,92777.0,92774.0,0.053843]
[1732087311540,0.053842,92776.0,92769.0,0.053846]
[1732087311742,0.053844,92773.0,92764.0,0.0956]
[1732087312344,0.053844,92773.0,92768.0,0.053846]
[1732087312644,0.3608,92778.0,92772.0,0.1040398]
[1732087312847,0.09964,92798.0,92783.0,0.053837]
[1732087312848,0.0025,92787.0,92783.0,0.053837]
[1732087313048,0.053835,92788.0,92784.0,0.053837]
[1732087313444,0.053836,92785.0,92780.0,0.053839]
[1732087313750,0.3608,92786.0,92780.0,0.053839]
[1732087314043,0.053837,92784.0,92780.0,0.053839]
[1732087314645,0.053838,92783.0,92780.0,0.053839]
[1732087315050,0.053838,92783.0,92781.0,0.053839]
[1732087315345,0.3608,92786.0,92782.0,0.053838]
[1732087315545,0.053837,92785.0,92782.0,0.053838]
[1732087315843,0.36136001,92787.0,92786.0,0.053836]
[1732087316046,0.00056001,92798.0,92784.0,0.3608]
[1732087316245,0.00056001,92798.0,92797.0,0.05383]
[1732087316450,0.053828,92801.0,92800.0,0.053828]
[1732087316636,0.053828,92801.0,92795.0,0.1040398]
[1732087316637,0.40878581,92808.0,92795.0,0.1040398]
[1732087316834,0.04798581,92808.0,92795.0,0.1040398]
[1732087317037,0.053831,92794.0,92793.0,0.3608]
[1732087317437,0.3608,92802.0,92785.0,0.0958]
[1732087317637,0.053833,92791.0,92786.0,1.5]
[1732087317847,0.10192,92800.0,92788.0,0.005]
[1732087318049,0.053834,92789.0,92788.0,0.005]
[1732087318237,0.2059598,92800.0,92785.0,0.0635]
[1732087318238,0.053835,92788.0,92785.0,0.0635]
[1732087318443,0.3608,92791.0,92785.0,0.0635]
[1732087318637,0.053836,92785.0,92782.0,0.058838]
[1732087318838,0.3608,92791.0,92778.0,0.05384]
[1732087319136,0.13472,92790.0,92777.0,0.005]
[1732087319342,0.053838,92783.0,92777.0,0.058841]
[1732087319655,0.13472,92790.0,92777.0,0.058841]
[1732087319656,0.053838,92782.0,92777.0,0.058841]